bitfinex-derivatives/quotes_SOLF0:USTF0_20260217
["timestamp","ask_amount","ask_price","bid_price","bid_amount"]
[1771313865580,2.74762939,86.29,86.251,14.33506899]
[1771313865786,5.41439273,86.29,86.251,14.33506899]
[1771313866173,2.74762939,86.3,86.255,3.89476899]
[1771313866674,2.66676334,86.299,86.255,3.89476899]
[1771313866884,2.6602363,86.289,86.242,14.33606899]
[1771313867080,2.6602363,86.289,86.23,2.74762939]
[1771313867081,2.6602363,86.289,86.243,3.89476899]
[1771313868681,2.6602363,86.289,86.245,3.89476899]
[1771313869387,2.65895041,86.299,86.25,2.74762939]
[1771313869577,2.65895041,86.299,86.251,3.89476899]
[1771313870873,2.65895041,86.299,86.254,3.92784252]
[1771313872387,2.65895041,86.299,86.257,10.4396]
[1771313872784,2.65895041,86.299,86.257,14.36744252]
[1771313873286,2.65895041,86.299,86.261,10.439]
[1771313874681,2.65895041,86.299,86.265,10.4386]
[1771313877087,2.73598369,86.31,86.273,14.36544252]
[1771313878286,2.75862297,86.313,86.274,3.92784252]
[1771313878489,2.73598369,86.31,86.274,3.92784252]
[1771313878691,2.75862297,86.319,86.278,14.36494252]
[1771313879190,2.73598369,86.31,86.278,14.36494252]
[1771313879690,2.73598369,86.31,86.278,10.4371]
[1771313880286,2.75862297,86.319,86.278,10.4371]
[1771313881391,2.75862297,86.319,86.219,34.92]
[1771313881392,2.77461019,86.289,86.221,3.92784252]
[1771313881593,2.73598369,86.26,86.221,3.92784252]
[1771313882283,2.77461019,86.269,86.221,3.92784252]
[1771313882794,2.77461019,86.269,86.235,10.4423]
[1771313883287,2.77461019,86.269,86.223,10.4436]
[1771313883488,2.77461019,86.269,86.223,14.37144252]
[1771313883685,2.77461019,86.269,86.224,3.92784252]
[1771313883994,2.73598369,86.28,86.239,14.36954252]
[1771313884187,2.81395564,86.279,86.239,3.92784252]
[1771313884392,2.73598369,86.27,86.224,3.92784252]
[1771313885793,2.73598369,86.27,86.229,10.4429]
[1771313885995,2.73598369,86.27,86.229,14.37074252]
[1771313886195,2.73598369,86.27,86.23,3.92784252]
[1771313886495,2.73598369,86.27,86.191,20.8951]
[1771313886496,2.82419674,86.269,86.217,3.92784252]
[1771313886795,2.82419674,86.259,86.217,3.92784252]
[1771313887198,2.73598369,86.27,86.231,3.92784252]
[1771313888099,2.83098755,86.273,86.234,14.37024252]
[1771313888291,2.83098755,86.273,86.235,3.92784252]
[1771313888697,2.73598369,86.28,86.235,3.92784252]
[1771313889795,2.73598369,86.28,86.238,3.92784252]
[1771313889998,2.84383114,86.269,86.224,3.92784252]
[1771313890197,2.73598369,86.27,86.224,3.92784252]
[1771313890392,5.57981483,86.28,86.224,3.92784252]
[1771313890595,2.84383114,86.279,86.224,3.92784252]
[1771313891199,12.69402061,86.278,86.226,3.92784252]
[1771313891501,2.73598369,86.28,86.231,3.92784252]
[1771313891801,2.83009665,86.278,86.231,3.92784252]
[1771313892098,9.92428484,86.277,86.231,3.92784252]
[1771313892289,9.92428484,86.276,86.231,3.92784252]
[1771313892494,9.92428484,86.275,86.231,3.92784252]
[1771313892697,2.83009665,86.278,86.234,10.4424]
[1771313892897,9.92508377,86.277,86.235,3.92784252]
[1771313893102,9.92508377,86.276,86.235,3.92784252]
[1771313893302,2.83009665,86.278,86.235,3.92784252]
[1771313893504,9.93019738,86.277,86.235,3.92784252]
[1771313893803,9.93019738,86.276,86.235,3.92784252]
[1771313894003,2.83009665,86.278,86.235,3.92784252]
[1771313894203,9.93019614,86.277,86.235,3.92784252]
[1771313894402,2.73598369,86.28,86.235,3.92784252]
[1771313894403,12.73498777,86.276,86.235,3.92784252]
[1771313894595,9.93019614,86.275,86.235,3.92784252]
[1771313894796,9.93019614,86.274,86.235,3.92784252]
[1771313895097,9.93019614,86.273,86.235,3.92784252]
[1771313895304,9.93019614,86.272,86.235,3.92784252]
[1771313895497,2.80479163,86.276,86.235,3.92784252]
[1771313895698,18.63298186,86.275,86.235,3.92784252]
[1771313895895,9.94175321,86.274,86.235,3.92784252]
[1771313896095,9.94175321,86.273,86.235,3.92784252]
[1771313896300,9.94175321,86.272,86.245,3.94987756]
[1771313896495,2.79712617,86.289,86.245,3.94987756]
[1771313896702,18.64313168,86.288,86.245,3.94987756]
[1771313896902,2.79712617,86.289,86.245,3.94987756]
[1771313896903,18.64313168,86.287,86.245,3.94987756]
[1771313897102,18.64313168,86.286,86.245,3.94987756]
[1771313897301,18.64313168,86.285,86.245,3.94987756]
[1771313897503,18.64313168,86.284,86.245,3.94987756]
[1771313897704,2.79712617,86.289,86.249,3.94987756]
[1771313897705,9.9476068,86.283,86.249,3.94987756]
[1771313897903,2.79712617,86.289,86.249,3.94987756]
[1771313898100,18.64956891,86.288,86.249,3.94987756]
[1771313898408,2.73598369,86.3,86.256,3.94987756]
[1771313898701,2.73598369,86.32,86.26,2.73598369]
[1771313898999,28.38282749,86.366,86.215,162.4735]
[1771313899000,8.70847619,86.319,86.285,3.94987756]
[1771313899195,2.82486928,86.339,86.285,3.94987756]
[1771313899500,2.73598369,86.36,86.301,3.96431987]
[1771313899806,2.73598369,86.36,86.303,3.96431987]
[1771313900395,2.73598369,86.37,86.312,3.96431987]
[1771313900800,13.36230438,86.38,86.321,3.96788336]
[1771313901103,2.73598369,86.38,86.321,3.96788336]
[1771313901299,2.73598369,86.38,86.323,3.96788336]
[1771313901495,2.73598369,86.38,86.331,3.96788336]
[1771313902097,2.73598369,86.4,86.351,3.96788336]
[1771313902293,2.73598369,86.41,86.36,2.73598369]
[1771313902502,2.73598369,86.42,86.361,3.96788336]
[1771313903806,2.73598369,86.42,86.371,3.96274669]
[1771313904706,2.73598369,86.42,86.371,14.38854669]
[1771313905109,2.73598369,86.4,86.356,3.956906]
[1771313905405,2.73598369,86.39,86.33,2.73598369]
[1771313905604,2.73598369,86.39,86.331,3.956906]
[1771313906309,2.73598369,86.39,86.335,3.956906]
[1771313906606,2.73598369,86.4,86.341,3.956906]
[1771313907200,2.73598369,86.39,86.344,3.95287239]
[1771313907696,2.73598369,86.38,86.344,3.95287239]
[1771313908200,2.73598369,86.41,86.361,3.95287239]
[1771313910005,2.73598369,86.42,86.361,3.95287239]
[1771313910206,0.02830898,86.428,86.371,3.95020002]
[1771313910402,2.73598369,86.42,86.371,3.95020002]
[1771313910706,0.02830898,86.409,86.356,3.95020002]
[1771313911209,0.02830898,86.409,86.357,10.4275]
[1771313911415,0.02048062,86.426,86.371,3.9541142]
[1771313912508,0.02048062,86.426,86.385,10.4241]
[1771313913319,2.73598369,86.42,86.385,10.4241]
[1771313913610,2.73598369,86.42,86.384,3.9541142]
[1771313914005,0.02048062,86.426,86.384,3.9541142]
[1771313914208,2.73598369,86.42,86.384,3.9541142]
[1771313914615,0.02048062,86.426,86.384,3.9541142]
[1771313916113,0.02048062,86.426,86.375,3.9573351]
[1771313917911,0.02048062,86.426,86.374,10.4254]
[1771313917912,2.73598369,86.41,86.358,3.95618236]
[1771313918312,2.73598369,86.41,86.361,3.95618236]
[1771313918515,2.73598369,86.42,86.361,3.95618236]
[1771313918712,2.75609412,86.42,86.361,3.95618236]
[1771313918910,0.02011043,86.42,86.361,3.95618236]
[1771313919115,2.75609412,86.42,86.361,3.95618236]
[1771313919722,2.75609412,86.42,86.363,3.95429929]
[1771313921122,2.73598369,86.42,86.363,3.95429929]
[1771313921620,2.73598369,86.42,86.36,2.73598369]
[1771313921621,10.4195,86.424,86.368,14.38149091]
[1771313921915,2.73598369,86.42,86.369,3.95539091]
[1771313927119,2.73598369,86.41,86.369,3.95539091]
[1771313928118,73.34,86.433,86.369,3.95539091]
[1771313928322,73.34,86.433,86.338,72.92]
[1771313928323,2.73598369,86.43,86.371,3.95479973]
[1771313928526,2.73598369,86.41,86.371,3.95479973]
[1771313928722,0.02639263,86.409,86.359,3.95479973]
[1771313929221,0.02639263,86.409,86.362,3.94627856]
[1771313930219,0.02653373,86.399,86.351,10.4282]
[1771313930422,2.72921214,86.39,86.347,3.955517]
[1771313930617,2.72921214,86.41,86.351,3.955517]
[1771313930821,2.72921214,86.4,86.351,3.955517]
[1771313931824,2.72921214,86.4,86.359,3.955517]
[1771313933732,2.72921214,86.39,86.359,3.955517]
[1771313934022,10.4214,86.408,86.359,3.955517]
[1771313934225,2.72921214,86.4,86.359,3.955517]
[1771313940028,2.76078905,86.4,86.359,3.955517]
[1771313940528,2.72921214,86.4,86.359,3.955517]
[1771313940734,2.72921214,86.4,86.362,3.955517]
[1771313941029,0.05650323,86.429,86.362,3.955517]
[1771313941227,2.72921214,86.43,86.391,3.955517]
[1771313941422,2.72921214,86.41,86.375,3.955517]
[1771313941632,2.72921214,86.41,86.376,10.4251]
[1771313941829,2.72921214,86.41,86.377,3.955517]
[1771313942127,0.05650323,86.419,86.377,3.955517]
[1771313942632,2.72921214,86.43,86.388,3.955517]
[1771313943020,2.72921214,86.43,86.387,10.4239]
[1771313943021,0.02817021,86.429,86.377,14.380517]
[1771313943226,2.72921214,86.43,86.378,3.955517]
[1771313943227,8.602946,86.428,86.378,3.955517]
[1771313943427,18.29282656,86.427,86.38,2.72921214]
[1771313943627,8.57477579,86.426,86.393,3.955517]
[1771313943827,10.71189289,86.445,86.393,3.955517]
[1771313943828,18.29282656,86.439,86.393,3.955517]
[1771313944031,8.57477579,86.438,86.393,3.955517]
[1771313944337,9.71805077,86.449,86.393,3.955517]
[1771313944338,18.29282656,86.437,86.393,3.955517]
[1771313944635,9.71805077,86.449,86.405,3.955517]
[1771313944932,18.37989123,86.448,86.405,3.955517]
[1771313945133,18.37989123,86.447,86.405,3.955517]
[1771313945336,18.37989123,86.446,86.405,3.955517]
[1771313945534,18.37989123,86.445,86.405,3.955517]
[1771313945831,18.37989123,86.444,86.409,3.955517]
[1771313946033,8.66184046,86.443,86.409,3.955517]
[1771313946334,8.66184046,86.442,86.409,3.955517]
[1771313946524,8.66184046,86.441,86.409,3.955517]
[1771313946722,2.72921214,86.45,86.409,3.955517]
[1771313946921,18.4631107,86.449,86.409,3.955517]
[1771313947127,18.4631107,86.448,86.413,3.955517]
[1771313947326,18.4631107,86.447,86.413,3.955517]
[1771313947535,18.4631107,86.446,86.413,3.955517]
[1771313947737,18.4631107,86.445,86.413,3.955517]
[1771313947936,8.66686705,86.444,86.413,3.955517]
[1771313948136,8.66686705,86.443,86.415,3.955517]
[1771313948434,9.79111106,86.459,86.415,3.955517]
[1771313948739,2.72921214,86.48,86.431,3.955517]
[1771313949731,2.72921214,86.48,86.432,14.38781488]
[1771313950632,2.72921214,86.48,86.433,3.96941488]
[1771313951940,2.72921214,86.46,86.419,10.42]
[1771313952138,2.72921214,86.46,86.419,14.38672373]
[1771313952438,2.72921214,86.46,86.419,3.96672373]
[1771313953638,2.72921214,86.46,86.421,4.03551896]
[1771313958540,2.72921214,86.47,86.421,4.03551896]
[1771313958935,72.9,86.488,86.388,72.9]
[1771313958936,2.72921214,86.48,86.423,4.05668844]
[1771313959137,2.72921214,86.46,86.423,4.05668844]
[1771313959630,2.72921214,86.48,86.431,4.05668844]
[1771313960244,10.71189289,86.51,86.431,4.05668844]
[1771313960432,2.72921214,86.46,86.415,4.05668844]
[1771313960637,2.72921214,86.48,86.421,4.05668844]
[1771313960834,2.72921214,86.48,86.427,4.02829854]
[1771313961049,2.72921214,86.48,86.431,4.02829854]
[1771313962745,2.72921214,86.48,86.433,4.02829854]
[1771313963138,2.72921214,86.49,86.433,4.02829854]
[1771313964442,8.56781455,86.511,86.457,14.48650995]
[1771313964647,2.72921214,86.49,86.458,4.07110995]
[1771313964848,2.72921214,86.48,86.441,4.07212236]
[1771313965048,2.72921214,86.47,86.441,4.07212236]
[1771313965445,2.72921214,86.48,86.441,4.07212236]
[1771313967947,2.72921214,86.49,86.443,4.07206939]
[1771313969245,2.72921214,86.49,86.448,4.07161885]
[1771313970045,2.72921214,86.48,86.448,4.07161885]
[1771313970252,2.72921214,86.49,86.448,4.07161885]
[1771313970651,2.72921214,86.49,86.451,10.4161]
[1771313973355,2.72921214,86.49,86.448,4.07161885]
[1771313974056,2.72921214,86.49,86.452,10.416]
[1771313974453,2.72921214,86.49,86.453,4.06860077]
[1771313974854,2.72921214,86.51,86.453,4.06860077]
[1771313975259,2.72921214,86.51,86.45,2.72921214]
[1771313975260,2.72921214,86.51,86.466,4.05486725]
[1771313975855,2.72921214,86.51,86.473,10.4135]
[1771313977254,2.72921214,86.51,86.466,4.05486725]
[1771313977654,10.4105,86.499,86.44,4.02468407]
[1771313977856,2.72921214,86.47,86.43,10.4186]
[1771313978263,2.72921214,86.47,86.43,14.44328407]
[1771313979058,2.72921214,86.47,86.434,10.4182]
[1771313979549,2.72921214,86.47,86.435,3.98849328]
[1771313980352,2.72921214,86.48,86.435,3.98849328]
[1771313980552,2.72921214,86.47,86.435,3.98849328]
[1771313980752,10.4105,86.499,86.441,3.98849328]
[1771313980960,2.72921214,86.48,86.441,3.98849328]
[1771313981149,2.72921214,86.46,86.428,4.03676487]
[1771313981354,2.72921214,86.46,86.371,20.8516]
[1771313981355,2.72921214,86.46,86.401,4.03676487]
[1771313981954,2.72921214,86.46,86.411,4.03676487]
[1771313982757,2.72921214,86.46,86.419,4.03676487]
[1771313983761,2.72921214,86.46,86.423,10.4195]
[1771313984562,2.72921214,86.45,86.412,10.4208]
[1771313984756,2.72921214,86.44,86.412,10.4208]
[1771313986257,2.72921214,86.44,86.406,3.99108543]
[1771313986462,2.72921214,86.44,86.371,20.8516]
[1771313986463,2.72921214,86.43,86.394,3.9906711]
[1771313986869,2.72921214,86.43,86.395,14.44039597]
[1771313987065,2.72921214,86.43,86.396,4.01749597]
[1771313987257,2.72921214,86.44,86.396,4.01749597]
[1771313989464,2.72921214,86.45,86.412,4.01090248]
[1771313989968,2.72921214,86.45,86.411,10.421]
[1771313989969,2.72921214,86.42,86.383,4.01090248]
[1771313990365,2.72921214,86.42,86.385,10.4242]
[1771313990668,8.55483437,86.441,86.386,4.01090248]
[1771313990863,2.72921214,86.44,86.386,4.01090248]
[1771313991763,2.72921214,86.45,86.402,4.01190721]
[1771313991973,2.72677346,86.45,86.402,4.01190721]
[1771313992771,2.72677346,86.45,86.405,4.01190721]
[1771313992974,2.72677346,86.44,86.405,4.01190721]
[1771313993270,2.72677346,86.44,86.398,4.00115786]
[1771313993471,2.72677346,86.45,86.398,4.00115786]
[1771313994769,2.72677346,86.45,86.348,34.75]
[1771313994770,2.72677346,86.43,86.383,4.00115786]
[1771313995774,10.71189289,86.466,86.383,4.00115786]
[1771313995775,2.72677346,86.42,86.383,4.00115786]
[1771313996078,2.72677346,86.42,86.304,162.3062]
[1771313996079,2.72677346,86.42,86.361,4.00275955]
[1771313996671,2.72677346,86.43,86.386,4.00275955]
[1771313998377,2.72677346,86.42,86.386,4.00275955]
[1771314000381,2.72677346,86.4,86.361,3.88362259]
[1771314001680,2.72677346,86.4,86.365,10.4265]
[1771314002782,2.89234045,86.4,86.361,3.88362259]
[1771314002985,2.72677346,86.39,86.341,3.84414477]
[1771314003289,0.16556699,86.4,86.346,10.4288]
[1771314003290,2.72677346,86.38,86.346,10.4288]
[1771314003469,2.72677346,86.39,86.347,3.84414477]
[1771314004682,2.72677346,86.39,86.352,10.4281]
[1771314005079,18.17434479,86.42,86.315,3.83292687]
[1771314005080,2.98493774,86.37,86.315,3.83292687]
[1771314005279,2.72677346,86.36,86.315,3.83292687]
[1771314005480,0.25816428,86.359,86.317,10.4323]
[1771314005675,18.15692807,86.391,86.331,3.96197687]
[1771314005676,2.72677346,86.38,86.331,3.96197687]
[1771314006786,2.72677346,86.38,86.32,2.72677346]
[1771314006787,2.72677346,86.38,86.334,3.98780486]
[1771314009486,2.72677346,86.38,86.337,10.4299]
[1771314011289,2.72677346,86.38,86.334,3.98780486]
[1771314012691,2.72677346,86.38,86.334,14.41800486]
[1771314013483,2.72677346,86.38,86.335,3.98513602]
[1771314015489,2.72677346,86.39,86.343,3.95477622]
[1771314016191,2.72677346,86.4,86.356,3.95477622]
[1771314022284,2.72677346,86.39,86.356,3.95477622]
[1771314023696,2.72677346,86.39,86.357,10.4275]
[1771314025289,2.72677346,86.39,86.358,3.95645724]
[1771314030088,2.72677346,86.39,86.297,162.319]
[1771314030089,2.72677346,86.38,86.346,3.94165575]
[1771314031496,0.04018764,86.389,86.347,10.4287]
[1771314031794,0.04018764,86.389,86.348,3.94450346]
[1771314032103,2.72677346,86.4,86.362,3.94450346]
[1771314036606,2.72677346,86.4,86.361,10.427]
[1771314036607,2.72677346,86.41,86.366,3.93353287]
[1771314036996,2.72677346,86.42,86.368,3.91939112]
[1771314037196,8.53184679,86.419,86.368,3.91939112]
[1771314038304,8.53184679,86.418,86.368,3.91939112]
[1771314038506,8.53184679,86.417,86.368,3.91939112]
[1771314038804,8.53184679,86.419,86.373,3.91939112]
[1771314039004,8.53184679,86.418,86.373,3.91939112]
[1771314039205,8.53184679,86.417,86.373,3.91939112]
[1771314039400,8.53184679,86.419,86.379,3.91710448]
[1771314039606,0.08471689,86.425,86.379,3.91710448]
[1771314040009,2.72677346,86.41,86.379,3.91710448]
[1771314041212,8.60646568,86.418,86.379,3.91710448]
[1771314041508,0.08353696,86.418,86.379,3.91710448]
[1771314044212,8.61130649,86.417,86.379,3.91710448]
[1771314044412,0.08353696,86.418,86.379,3.91710448]
[1771314047823,2.72677346,86.43,86.381,3.9194428]
[1771314047824,8.61092522,86.429,86.381,3.9194428]
[1771314048014,8.61092522,86.428,86.381,3.9194428]
[1771314048216,8.61092522,86.427,86.381,3.9194428]
[1771314048418,8.61092522,86.429,86.381,3.9194428]
[1771314048616,8.61092522,86.428,86.381,3.9194428]
[1771314048817,8.61092522,86.429,86.39,14.3429428]
[1771314049017,8.61092522,86.428,86.39,14.3429428]
[1771314049218,8.61092522,86.429,86.391,3.91871617]
[1771314050419,2.72677346,86.43,86.391,3.91871617]
[1771314051022,11.33769868,86.43,86.391,3.91871617]
[1771314051222,2.72677346,86.43,86.391,3.91871617]
[1771314052823,0.09454272,86.429,86.391,3.91871617]
[1771314053426,2.72677346,86.42,86.391,3.91871617]
[1771314054031,0.09454272,86.429,86.391,3.91871617]
[1771314056020,0.09454272,86.429,86.338,72.92]
[1771314056021,8.61092522,86.441,86.403,3.95435181]
[1771314056225,2.72835841,86.44,86.403,3.95435181]
[1771314057029,2.80416924,86.44,86.403,3.95435181]
[1771314058432,2.72835841,86.45,86.405,3.95435181]
[1771314058628,0.07581083,86.451,86.405,3.95435181]
[1771314059424,2.72835841,86.46,86.408,3.95435181]
[1771314060226,2.72835841,86.46,86.417,3.95435181]
[1771314060636,2.72835841,86.47,86.417,3.95435181]
[1771314061930,2.72835841,86.46,86.42,3.95435181]
[1771314062231,2.72835841,86.46,86.39,72.92]
[1771314062232,2.72835841,86.43,86.395,3.95435181]
[1771314062633,0.06623458,86.439,86.395,3.95435181]
[1771314062829,72.9,86.455,86.36,72.9]
[1771314062830,2.72835841,86.45,86.407,3.95435181]
[1771314063734,2.72835841,86.44,86.408,10.4213]
[1771314063930,2.72835841,86.44,86.408,14.37565181]
[1771314064934,2.72835841,86.44,86.409,3.95435181]
[1771314065435,2.72835841,86.42,86.371,3.98369389]
[1771314065828,2.72835841,86.43,86.371,3.98369389]
[1771314066834,2.72835841,86.42,86.384,3.98369389]
[1771314067229,2.72835841,86.41,86.384,3.98369389]
[1771314067428,2.72835841,86.42,86.373,10.4255]
[1771314067731,2.72835841,86.42,86.373,14.40978871]
[1771314068033,2.72835841,86.4,86.371,3.98428871]
[1771314068230,2.72835841,86.41,86.371,3.98428871]
[1771314068627,2.72835841,86.4,86.371,3.98428871]
[1771314070732,5.841e-05,86.4,86.374,14.4129708]
[1771314070937,2.72835841,86.41,86.375,4.00861541]
[1771314071537,2.72835841,86.4,86.375,4.00861541]
[1771314072134,2.72835841,86.39,86.341,4.00861541]
[1771314073736,2.72835841,86.39,86.354,4.01006236]
[1771314075336,2.72835841,86.39,86.358,14.43877825]
[1771314076840,2.72835841,86.39,86.358,4.01137825]
[1771314082742,2.72835841,86.39,86.359,14.43451903]
[1771314082942,2.72835841,86.39,86.36,4.0048323]
[1771314083747,2.72835841,86.4,86.36,4.0048323]
[1771314084653,2.72835841,86.4,86.363,4.0048323]
[1771314089252,2.72835841,86.4,86.369,4.00648511]
[1771314089445,2.72835841,86.41,86.369,4.00648511]
[1771314090752,2.72835841,86.41,86.372,4.00648511]
[1771314091146,72.92,86.414,86.372,4.00648511]
[1771314091350,2.72835841,86.42,86.379,4.0236197]
[1771314091546,2.72835841,86.4,86.351,4.0236197]
[1771314091741,2.72835841,86.39,86.351,4.0236197]
[1771314092545,2.72835841,86.38,86.351,4.0236197]
[1771314092847,2.72835841,86.38,86.353,10.4279]
[1771314094851,2.72835841,86.38,86.342,10.4293]
[1771314095049,2.72835841,86.37,86.342,10.4293]
[1771314096553,2.72835841,86.38,86.347,10.4286]
[1771314096758,2.72835841,86.39,86.348,3.99502223]
[1771314097758,2.72835841,86.38,86.34,3.99953949]
[1771314098656,2.72835841,86.38,86.341,10.4294]
[1771314098854,2.72835841,86.38,86.342,3.99953949]
[1771314099746,2.72835841,86.38,86.345,10.4289]
[1771314102558,2.72835841,86.38,86.345,14.43005986]
[1771314104859,2.72835841,86.38,86.35,4.00500512]
[1771314105167,2.72835841,86.39,86.35,4.00500512]
[1771314106662,2.72835841,86.39,86.354,4.00500512]
[1771314107759,2.72835841,86.39,86.357,3.99590285]
[1771314108364,2.72835841,86.39,86.35,10.4283]
[1771314108764,2.72835841,86.39,86.351,3.99590285]
[1771314110265,2.72835841,86.38,86.351,3.99590285]
[1771314113775,2.72835841,86.39,86.351,3.99590285]
[1771314114071,8.59688742,86.389,86.351,3.99590285]
[1771314114272,2.72835841,86.39,86.351,3.99590285]
[1771314114471,8.5979592,86.389,86.351,3.99590285]
[1771314114664,2.72835841,86.39,86.351,3.99590285]
[1771314114864,2.72835841,86.39,86.354,3.99806894]
[1771314115069,2.72835841,86.4,86.354,3.99806894]
[1771314115272,8.59801371,86.399,86.354,3.99806894]
[1771314115573,8.59801371,86.398,86.354,3.99806894]
[1771314115872,8.59801371,86.397,86.354,3.99806894]
[1771314116072,8.59801371,86.396,86.354,3.99806894]
[1771314116271,8.59801371,86.395,86.354,3.99806894]
[1771314116472,8.59801371,86.394,86.354,3.99806894]
[1771314116670,8.59801371,86.393,86.357,14.42556894]
[1771314116871,8.59801371,86.392,86.357,14.42556894]
[1771314117070,8.59801371,86.391,86.357,14.42556894]
[1771314117374,11.32826651,86.39,86.357,14.42556894]
[1771314117574,8.59801371,86.389,86.357,14.42556894]
[1771314117873,8.59801371,86.388,86.357,14.42556894]
[1771314118074,2.7302528,86.39,86.357,14.42556894]
[1771314118271,8.60042877,86.389,86.357,14.42556894]
[1771314118471,8.60042877,86.388,86.36,10.4271]
[1771314118673,2.7302528,86.4,86.361,3.99330848]
[1771314118873,8.60164446,86.399,86.361,3.99330848]
[1771314119070,2.7302528,86.4,86.361,3.99330848]
[1771314119071,8.60164446,86.398,86.361,3.99330848]
[1771314119269,8.60164446,86.397,86.361,3.99330848]
[1771314119474,8.60164446,86.396,86.361,3.99330848]
[1771314119672,8.60164446,86.395,86.363,4.02039025]
[1771314119869,8.60164446,86.394,86.363,4.02039025]
[1771314120068,2.7302528,86.4,86.363,4.02039025]
[1771314120268,8.60137538,86.399,86.363,4.02039025]
[1771314120470,8.60137538,86.398,86.363,4.02039025]
[1771314120675,8.60137538,86.397,86.363,4.02039025]
[1771314120977,8.60137538,86.396,86.363,4.02039025]
[1771314121176,8.60137538,86.395,86.363,4.02039025]
[1771314121378,8.60137538,86.394,86.363,4.02039025]
[1771314121579,2.7302528,86.4,86.363,4.02039025]
[1771314121782,8.60154406,86.399,86.363,4.02039025]
[1771314121974,8.60154406,86.398,86.363,4.02039025]
[1771314122170,8.60154406,86.397,86.363,4.02039025]
[1771314122374,8.60154406,86.396,86.363,4.02039025]
[1771314122575,8.60154406,86.395,86.363,4.02039025]
[1771314122775,2.7302528,86.4,86.363,4.02039025]
[1771314122776,8.60154406,86.394,86.363,4.02039025]
[1771314122973,2.7302528,86.4,86.363,4.02039025]
[1771314123179,8.60162971,86.399,86.363,4.02039025]
[1771314123380,8.60162971,86.398,86.363,4.02039025]
[1771314123680,8.60162971,86.397,86.363,4.02039025]
[1771314123978,8.60162971,86.396,86.363,4.02039025]
[1771314124177,8.60162971,86.395,86.363,4.02039025]
[1771314124378,8.60162971,86.394,86.363,4.02039025]
[1771314124581,2.7302528,86.4,86.363,4.02039025]
[1771314124781,8.60109221,86.399,86.363,4.02039025]
[1771314124979,8.60109221,86.398,86.363,4.02039025]
[1771314125176,8.60109221,86.397,86.363,4.02039025]
[1771314125377,8.60109221,86.396,86.363,4.02039025]
[1771314125576,8.60109221,86.395,86.363,4.02039025]
[1771314125777,8.60109221,86.394,86.363,4.02039025]
[1771314125977,2.7302528,86.4,86.363,4.02039025]
[1771314126172,8.60026312,86.399,86.363,4.02039025]
[1771314126377,8.60026312,86.398,86.363,4.02039025]
[1771314126581,8.60026312,86.397,86.363,4.02039025]
[1771314126777,8.60026312,86.396,86.363,4.02039025]
[1771314126977,2.7302528,86.4,86.363,4.02039025]
[1771314127171,8.60038988,86.399,86.363,4.02039025]
[1771314127378,8.60038988,86.398,86.363,4.02039025]
[1771314127577,8.60038988,86.397,86.363,4.02039025]
[1771314127782,8.60038988,86.396,86.363,4.02039025]
[1771314128083,8.60038988,86.395,86.363,4.02039025]
[1771314128279,8.60038988,86.394,86.363,4.02039025]
[1771314128483,2.7302528,86.39,86.361,10.427]
[1771314129480,2.7302528,86.4,86.361,10.427]
[1771314129679,8.60095212,86.399,86.362,4.02344721]
[1771314129978,8.60095212,86.398,86.362,4.02344721]
[1771314130178,8.60095212,86.397,86.362,4.02344721]
[1771314130376,8.60095212,86.396,86.362,4.02344721]
[1771314130587,8.60095212,86.395,86.362,4.02344721]
[1771314130785,8.60095212,86.394,86.362,4.02344721]
[1771314130986,8.60095212,86.393,86.362,4.02344721]
[1771314131183,2.7302528,86.4,86.362,4.02344721]
[1771314131387,8.60141491,86.399,86.362,4.02344721]
[1771314131584,8.60141491,86.398,86.362,4.02344721]
[1771314131782,8.60141491,86.397,86.362,4.02344721]
[1771314131988,2.7302528,86.39,86.352,4.01550518]
[1771314132284,8.60141491,86.389,86.352,4.01550518]
[1771314132583,8.60141491,86.388,86.352,4.01550518]
[1771314132778,2.7302528,86.39,86.352,4.01550518]
[1771314132980,8.60142397,86.389,86.352,4.01550518]
[1771314133188,8.60142397,86.388,86.352,4.01550518]
[1771314133387,8.60142397,86.387,86.352,4.01550518]
[1771314133689,2.7302528,86.39,86.352,4.01550518]
[1771314133886,8.60172353,86.389,86.352,4.01550518]
[1771314134086,8.60172353,86.388,86.352,4.01550518]
[1771314134287,2.7302528,86.39,86.352,4.01550518]
[1771314134288,8.60172353,86.387,86.352,4.01550518]
[1771314134487,2.7302528,86.39,86.352,4.01550518]
[1771314134683,8.60205952,86.389,86.352,4.01550518]
[1771314134878,8.60205952,86.388,86.352,4.01550518]
[1771314135083,8.60205952,86.387,86.352,4.01550518]
[1771314135286,2.7302528,86.4,86.352,4.01550518]
[1771314135486,18.11822897,86.399,86.352,4.01550518]
[1771314135690,18.11822897,86.398,86.352,4.01550518]
[1771314135891,18.11822897,86.397,86.352,4.01550518]
[1771314136086,18.11822897,86.396,86.352,4.01550518]
[1771314136390,18.11822897,86.395,86.352,4.01550518]
[1771314136590,18.11822897,86.394,86.352,4.01550518]
[1771314136785,18.11822897,86.393,86.352,4.01550518]